[Event "*** Titled Tuesday 3|2 Blitz"]
[Site "Chess.com"]
[Date "2016.02.02"]
[Round "1"]
[White "Hafez_Bakr"]
[Black "oskariot"]
[Result "0-1"]
[WhiteElo "1744"]
[BlackElo "2343"]
[TimeControl "180+2"]
[EndTime "11:04:01 PST"]
[Termination "oskariot won by checkmate"]

1. c4 {[%clk 0:02:59.7]} 1... Nf6 {[%clk 0:02:49.1]} 2. Nc3 {[%clk 0:03:00.6]}
2... g6 {[%clk 0:02:49.5]} 3. Nf3 {[%clk 0:03:01.7]} 3... Bg7 {[%clk 0:02:49]}
4. g3 {[%clk 0:03:03]} 4... O-O {[%clk 0:02:47.3]} 5. Bg2 {[%clk 0:03:04.1]}
5... d6 {[%clk 0:02:48.4]} 6. O-O {[%clk 0:03:04.4]} 6... Nc6 {[%clk 0:02:48.9]}
7. d4 {[%clk 0:03:05.3]} 7... Bg4 {[%clk 0:02:48.6]} 8. d5 {[%clk 0:03:05.6]}
8... Na5 {[%clk 0:02:48.8]} 9. Qd3 {[%clk 0:03:02.1]} 9... c5 {[%clk 0:02:47]}
10. dxc6 {[%clk 0:02:51.7]} 10... Nxc6 {[%clk 0:02:44.2]} 11. Bg5 {[%clk
0:02:48.3]} 11... Rc8 {[%clk 0:02:44.3]} 12. b3 {[%clk 0:02:47.9]} 12... h6
{[%clk 0:02:41.9]} 13. Be3 {[%clk 0:02:43.9]} 13... Qa5 {[%clk 0:02:25.2]} 14.
Bd2 {[%clk 0:02:39.9]} 14... Qh5 {[%clk 0:02:20.6]} 15. Rad1 {[%clk 0:02:34.5]}
15... Bf5 {[%clk 0:01:55.2]} 16. Qe3 {[%clk 0:02:30.5]} 16... Ng4 {[%clk
0:01:48.2]} 17. Qf4 {[%clk 0:02:06]} 17... e5 {[%clk 0:01:48.3]} 18. Nxe5 {[%clk
0:02:05.9]} 18... Qxh2# {[%clk 0:01:41.3]} 0-1

[Event "*** Titled Tuesday 3|2 Blitz"]
[Site "Chess.com"]
[Date "2016.02.02"]
[Round "1"]
[White "Quiet_Desperation"]
[Black "Dr-Bassem"]
[Result "0-1"]
[WhiteElo "2093"]
[BlackElo "2447"]
[TimeControl "180+2"]
[EndTime "11:06:02 PST"]
[Termination "Dr-Bassem won by resignation"]

1. e4 {[%clk 0:03:01.2]} 1... e5 {[%clk 0:03:00.7]} 2. Nf3 {[%clk 0:03:01.1]}
2... Nc6 {[%clk 0:03:02.3]} 3. Bb5 {[%clk 0:03:02.8]} 3... a6 {[%clk 0:03:03.2]}
4. Ba4 {[%clk 0:03:02.8]} 4... Nf6 {[%clk 0:03:04.3]} 5. d3 {[%clk 0:03:04.3]}
5... d6 {[%clk 0:03:03.9]} 6. c3 {[%clk 0:03:05.9]} 6... g6 {[%clk 0:03:05.2]}
7. O-O {[%clk 0:03:07]} 7... Bg7 {[%clk 0:03:06.6]} 8. h3 {[%clk 0:03:08.7]}
8... O-O {[%clk 0:03:07.6]} 9. Re1 {[%clk 0:03:10.3]} 9... Bd7 {[%clk
0:03:08.9]} 10. Nbd2 {[%clk 0:03:11.5]} 10... Qe8 {[%clk 0:03:08.9]} 11. Bc2
{[%clk 0:03:13.1]} 11... Nh5 {[%clk 0:03:06.7]} 12. Nf1 {[%clk 0:03:13.6]} 12...
f5 {[%clk 0:03:06.5]} 13. exf5 {[%clk 0:03:09]} 13... gxf5 {[%clk 0:03:08.4]}
14. Ng5 {[%clk 0:02:45.6]} 14... Qg6 {[%clk 0:03:05.6]} 15. Nf3 {[%clk 0:02:35]}
15... Bf6 {[%clk 0:03:00.7]} 16. N1h2 {[%clk 0:02:10.5]} 16... Kh8 {[%clk
0:03:00]} 17. Kh1 {[%clk 0:01:57.6]} 17... Rg8 {[%clk 0:03:00.8]} 18. Rg1 {[%clk
0:01:58.1]} 18... d5 {[%clk 0:02:37.1]} 19. Ne1 {[%clk 0:01:51.6]} 19... Rad8
{[%clk 0:02:32.8]} 20. Qe2 {[%clk 0:01:38.2]} 20... e4 {[%clk 0:02:27.9]} 21.
Bd1 {[%clk 0:01:31.9]} 21... Ng7 {[%clk 0:02:16.6]} 22. d4 {[%clk 0:01:30.2]}
22... Bh4 {[%clk 0:02:05.3]} 23. f4 {[%clk 0:01:28.8]} 23... Ne6 {[%clk
0:01:53.6]} 24. Be3 {[%clk 0:01:27.5]} 24... Bg3 {[%clk 0:01:48.1]} 25. Rf1
{[%clk 0:01:18.4]} 25... Ne7 {[%clk 0:01:43.2]} 26. Qh5 {[%clk 0:01:06.2]} 26...
Bb5 {[%clk 0:01:42.1]} 27. Rg1 {[%clk 0:01:02]} 27... Bxf4 {[%clk 0:01:33.1]}
28. Qxg6 {[%clk 0:01:00.5]} 28... Nxg6 {[%clk 0:01:30.8]} 29. Bf2 {[%clk
0:00:59.2]} 29... e3 {[%clk 0:01:29]} 0-1

[Event "*** Titled Tuesday 3|2 Blitz"]
[Site "Chess.com"]
[Date "2016.02.02"]
[Round "1"]
[White "Rikikits"]
[Black "kikydu96"]
[Result "1-0"]
[WhiteElo "2566"]
[BlackElo "2261"]
[TimeControl "180+2"]
[EndTime "11:06:15 PST"]
[Termination "Rikikits won by resignation"]

1. e4 {[%clk 0:02:45.2]} 1... e5 {[%clk 0:02:41.8]} 2. Nf3 {[%clk 0:02:34.2]}
2... Nc6 {[%clk 0:02:38.5]} 3. Bb5 {[%clk 0:02:24.7]} 3... a6 {[%clk 0:02:36.8]}
4. Ba4 {[%clk 0:02:25.4]} 4... Nf6 {[%clk 0:02:36.4]} 5. d3 {[%clk 0:02:26.5]}
5... d6 {[%clk 0:02:36.2]} 6. c4 {[%clk 0:02:24.7]} 6... g6 {[%clk 0:02:23]} 7.
Nc3 {[%clk 0:02:24.6]} 7... Bg7 {[%clk 0:02:21.5]} 8. h3 {[%clk 0:02:24.6]} 8...
O-O {[%clk 0:02:19.3]} 9. Bxc6 {[%clk 0:02:23.8]} 9... bxc6 {[%clk 0:02:20]} 10.
Be3 {[%clk 0:02:25.7]} 10... d5 {[%clk 0:02:11.1]} 11. Bc5 {[%clk 0:02:21.3]}
11... Re8 {[%clk 0:02:03.8]} 12. O-O {[%clk 0:02:22.3]} 12... h6 {[%clk
0:01:53.9]} 13. Re1 {[%clk 0:02:17.5]} 13... Nh5 {[%clk 0:01:47.1]} 14. exd5
{[%clk 0:02:15.8]} 14... Nf4 {[%clk 0:01:43.1]} 15. d4 {[%clk 0:02:11.5]} 15...
cxd5 {[%clk 0:00:14.3]} 16. dxe5 {[%clk 0:02:11.6]} 16... Ne6 {[%clk 0:00:12.1]}
17. Ba3 {[%clk 0:02:09.1]} 17... dxc4 {[%clk 0:00:10.5]} 18. Qa4 {[%clk
0:02:09.6]} 18... Bb7 {[%clk 0:00:07.9]} 19. Rad1 {[%clk 0:02:06.5]} 19... Qc8
{[%clk 0:00:06.6]} 20. Nd5 {[%clk 0:02:02.3]} 20... Bxd5 {[%clk 0:00:06.6]} 21.
Rxd5 {[%clk 0:02:03]} 21... Qb7 {[%clk 0:00:06.4]} 22. Qxc4 {[%clk 0:02:03]}
22... Rad8 {[%clk 0:00:05.9]} 23. Red1 {[%clk 0:02:03.6]} 23... Rxd5 {[%clk
0:00:05.2]} 24. Qxd5 {[%clk 0:02:05.5]} 24... Qxd5 {[%clk 0:00:05.1]} 25. Rxd5
{[%clk 0:02:07.4]} 25... Nf4 {[%clk 0:00:05.5]} 26. Ra5 {[%clk 0:02:07.8]} 1-0

[Event "*** Titled Tuesday 3|2 Blitz"]
[Site "Chess.com"]
[Date "2016.02.02"]
[Round "1"]
[White "Cecile_Haussernot"]
[Black "Imre91"]
[Result "0-1"]
[WhiteElo "2182"]
[BlackElo "2513"]
[TimeControl "180+2"]
[EndTime "11:06:16 PST"]
[Termination "Imre91 won by resignation"]

1. e4 {[%clk 0:03:01.9]} 1... e6 {[%clk 0:02:59.9]} 2. d4 {[%clk 0:01:57]} 2...
d5 {[%clk 0:02:59.7]} 3. Nc3 {[%clk 0:01:57.1]} 3... Nc6 {[%clk 0:02:58]} 4. Bb5
{[%clk 0:01:55.8]} 4... Ne7 {[%clk 0:02:54.8]} 5. Nf3 {[%clk 0:01:56.1]} 5... a6
{[%clk 0:02:55]} 6. Bxc6+ {[%clk 0:01:55.3]} 6... Nxc6 {[%clk 0:02:54.9]} 7. O-O
{[%clk 0:01:55.8]} 7... Be7 {[%clk 0:02:55.3]} 8. exd5 {[%clk 0:01:49.7]} 8...
exd5 {[%clk 0:02:56]} 9. Re1 {[%clk 0:01:51.1]} 9... O-O {[%clk 0:02:56.7]} 10.
Bf4 {[%clk 0:01:50.5]} 10... Bg4 {[%clk 0:02:54.1]} 11. h3 {[%clk 0:01:39.5]}
11... Bh5 {[%clk 0:02:55.1]} 12. Qd3 {[%clk 0:01:39.7]} 12... Bg6 {[%clk
0:02:53.3]} 13. Qd2 {[%clk 0:01:40.4]} 13... Bb4 {[%clk 0:02:54]} 14. a3 {[%clk
0:01:38]} 14... Ba5 {[%clk 0:02:53.5]} 15. b4 {[%clk 0:01:37.6]} 15... Bb6
{[%clk 0:02:54.4]} 16. Na4 {[%clk 0:01:38.7]} 16... Ba7 {[%clk 0:02:53.7]} 17.
Nc5 {[%clk 0:01:39.5]} 17... Bxc5 {[%clk 0:02:54.7]} 18. dxc5 {[%clk 0:01:39.8]}
18... Qd7 {[%clk 0:02:46.8]} 19. Rad1 {[%clk 0:01:40.2]} 19... Rad8 {[%clk
0:02:46.9]} 20. Nd4 {[%clk 0:01:38.5]} 20... Nxd4 {[%clk 0:02:45.9]} 21. Qxd4
{[%clk 0:01:40.1]} 21... Bxc2 {[%clk 0:02:47.4]} 22. Rd2 {[%clk 0:01:40.1]}
22... Bg6 {[%clk 0:02:48]} 23. Re5 {[%clk 0:01:38.9]} 23... c6 {[%clk
0:02:48.3]} 24. h4 {[%clk 0:01:39.5]} 24... f6 {[%clk 0:02:48.6]} 25. Re3 {[%clk
0:01:36.9]} 25... Rfe8 {[%clk 0:02:49.6]} 26. a4 {[%clk 0:01:30.6]} 26... Qf5
{[%clk 0:02:46.7]} 27. Bd6 {[%clk 0:01:11.7]} 27... Rxe3 {[%clk 0:02:45.9]} 28.
fxe3 {[%clk 0:01:10.9]} 28... Re8 {[%clk 0:02:47.5]} 29. b5 {[%clk 0:01:08.3]}
29... axb5 {[%clk 0:02:47.3]} 30. axb5 {[%clk 0:01:09.2]} 30... Qb1+ {[%clk
0:02:44.3]} 31. Kh2 {[%clk 0:01:08.6]} 31... Re4 {[%clk 0:02:41.2]} 32. Qb2
{[%clk 0:00:58.3]} 32... Rxh4+ {[%clk 0:02:41.7]} 33. Kg3 {[%clk 0:00:59.2]}
33... Qe1+ {[%clk 0:02:39.4]} 34. Rf2 {[%clk 0:01:00.2]} 34... Re4 {[%clk
0:02:40.1]} 35. Bf4 {[%clk 0:00:57.9]} 35... h5 {[%clk 0:02:36.2]} 36. bxc6
{[%clk 0:00:54.2]} 36... bxc6 {[%clk 0:02:38.1]} 37. Kh2 {[%clk 0:00:50.3]}
37... Rc4 {[%clk 0:02:31.5]} 38. Qb8+ {[%clk 0:00:44.2]} 38... Kh7 {[%clk
0:02:31.8]} 39. Bg3 {[%clk 0:00:44.1]} 39... h4 {[%clk 0:02:30.8]} 0-1

[Event "*** Titled Tuesday 3|2 Blitz"]
[Site "Chess.com"]
[Date "2016.02.02"]
[Round "1"]
[White "Danirod"]
[Black "AndrewMcStone"]
[Result "1-0"]
[WhiteElo "2387"]
[BlackElo "2023"]
[TimeControl "180+2"]
[EndTime "11:06:22 PST"]
[Termination "Danirod won by resignation"]

1. e4 {[%clk 0:03:01.9]} 1... d5 {[%clk 0:02:27.5]} 2. exd5 {[%clk 0:03:02.4]}
2... Nf6 {[%clk 0:02:28.6]} 3. d4 {[%clk 0:03:02.2]} 3... Bg4 {[%clk 0:02:28.3]}
4. Bb5+ {[%clk 0:03:02.1]} 4... Nbd7 {[%clk 0:02:27.8]} 5. f3 {[%clk 0:03:02.8]}
5... Bf5 {[%clk 0:02:27.1]} 6. Nc3 {[%clk 0:03:03.6]} 6... a6 {[%clk 0:02:26.5]}
7. Ba4 {[%clk 0:03:02.4]} 7... b5 {[%clk 0:02:18.2]} 8. Bb3 {[%clk 0:03:03.1]}
8... Nb6 {[%clk 0:02:19.4]} 9. a3 {[%clk 0:02:59.6]} 9... Nfxd5 {[%clk
0:02:00.3]} 10. Nge2 {[%clk 0:02:57.4]} 10... c6 {[%clk 0:01:52.2]} 11. Ne4
{[%clk 0:02:56.3]} 11... e6 {[%clk 0:01:47.2]} 12. O-O {[%clk 0:02:57.1]} 12...
Be7 {[%clk 0:01:46.3]} 13. N2g3 {[%clk 0:02:47.6]} 13... Bg6 {[%clk 0:01:43.4]}
14. Nc5 {[%clk 0:02:48.8]} 14... O-O {[%clk 0:01:31.7]} 15. c3 {[%clk
0:02:48.5]} 15... Bxc5 {[%clk 0:01:22.7]} 16. dxc5 {[%clk 0:02:49.8]} 16... Nd7
{[%clk 0:01:23.5]} 17. Ne4 {[%clk 0:02:48.8]} 17... Qe7 {[%clk 0:00:52.4]} 18.
Qd4 {[%clk 0:02:44.4]} 18... e5 {[%clk 0:00:44]} 19. Qf2 {[%clk 0:02:44.2]}
19... Bxe4 {[%clk 0:00:30.3]} 20. fxe4 {[%clk 0:02:45.1]} 20... N5f6 {[%clk
0:00:25.8]} 21. Bg5 {[%clk 0:02:43.5]} 21... Qxc5 {[%clk 0:00:23.9]} 22. Bc2
{[%clk 0:02:23]} 22... Qxf2+ {[%clk 0:00:24.2]} 23. Rxf2 {[%clk 0:02:24]} 23...
h6 {[%clk 0:00:24.8]} 24. Bh4 {[%clk 0:02:23.4]} 24... Rad8 {[%clk 0:00:19.8]}
25. Rd1 {[%clk 0:02:23.3]} 25... g5 {[%clk 0:00:20.3]} 26. Bg3 {[%clk 0:02:24]}
26... Kg7 {[%clk 0:00:21.6]} 27. Rfd2 {[%clk 0:02:24.8]} 27... Rfe8 {[%clk
0:00:18.8]} 28. Rd6 {[%clk 0:02:25.5]} 28... Rc8 {[%clk 0:00:14.2]} 29. Rxd7
{[%clk 0:02:24.7]} 29... Nxd7 {[%clk 0:00:14.7]} 30. Rxd7 {[%clk 0:02:26.3]}
30... Kf6 {[%clk 0:00:15.8]} 31. Rd6+ {[%clk 0:02:27.1]} 31... Re6 {[%clk
0:00:16.1]} 32. Rd7 {[%clk 0:02:27.2]} 32... Re7 {[%clk 0:00:16.5]} 33. Rd6+
{[%clk 0:02:25.6]} 33... Re6 {[%clk 0:00:17.7]} 34. Rd2 {[%clk 0:02:26.2]} 34...
Ke7 {[%clk 0:00:17.4]} 35. Bf2 {[%clk 0:02:26.8]} 35... f6 {[%clk 0:00:17.8]}
36. Bc5+ {[%clk 0:02:27.6]} 36... Ke8 {[%clk 0:00:19.2]} 37. Bb3 {[%clk
0:02:28.4]} 1-0

[Event "*** Titled Tuesday 3|2 Blitz"]
[Site "Chess.com"]
[Date "2016.02.02"]
[Round "1"]
[White "Saitama_Hero"]
[Black "VSERGUEI"]
[Result "1-0"]
[WhiteElo "2072"]
[BlackElo "2384"]
[TimeControl "180+2"]
[EndTime "11:06:38 PST"]
[Termination "Saitama_Hero won by checkmate"]

1. e4 {[%clk 0:02:57]} 1... e6 {[%clk 0:02:15.3]} 2. d4 {[%clk 0:02:52.3]} 2...
d5 {[%clk 0:02:13.3]} 3. Nc3 {[%clk 0:02:53.8]} 3... Nf6 {[%clk 0:02:13]} 4. e5
{[%clk 0:02:54.8]} 4... Nfd7 {[%clk 0:02:13.3]} 5. f4 {[%clk 0:02:56.4]} 5... c5
{[%clk 0:02:13.5]} 6. Nf3 {[%clk 0:02:58]} 6... Nc6 {[%clk 0:02:14.6]} 7. Be3
{[%clk 0:02:59.4]} 7... Be7 {[%clk 0:02:15.6]} 8. Qd2 {[%clk 0:02:58.3]} 8...
O-O {[%clk 0:02:15.9]} 9. O-O-O {[%clk 0:02:57.8]} 9... c4 {[%clk 0:02:16.2]}
10. f5 {[%clk 0:02:55.8]} 10... b5 {[%clk 0:02:16.4]} 11. g4 {[%clk 0:02:52.6]}
11... b4 {[%clk 0:02:16.2]} 12. Ne2 {[%clk 0:02:53.4]} 12... Qa5 {[%clk
0:02:15.4]} 13. Kb1 {[%clk 0:02:53.3]} 13... c3 {[%clk 0:02:15.5]} 14. Qe1
{[%clk 0:02:50.4]} 14... cxb2 {[%clk 0:02:14.7]} 15. Nf4 {[%clk 0:02:48.2]}
15... Nb6 {[%clk 0:02:15]} 16. f6 {[%clk 0:02:34.8]} 16... gxf6 {[%clk
0:02:14.8]} 17. Qh4 {[%clk 0:02:26.6]} 17... Na4 {[%clk 0:01:32.9]} 18. Rd3
{[%clk 0:02:28.1]} 18... Qd8 {[%clk 0:01:19.5]} 19. exf6 {[%clk 0:02:18.6]}
19... Bxf6 {[%clk 0:01:19.7]} 20. g5 {[%clk 0:02:20.1]} 20... Bh8 {[%clk
0:01:17.7]} 21. Nh5 {[%clk 0:02:04.5]} 21... Ne7 {[%clk 0:01:08.5]} 22. Ne5
{[%clk 0:01:27]} 22... Ng6 {[%clk 0:01:02.4]} 23. Qg3 {[%clk 0:01:19.9]} 23...
Ba6 {[%clk 0:00:58.9]} 24. Ng4 {[%clk 0:01:14.2]} 24... Bxd3 {[%clk 0:00:29.8]}
25. Bxd3 {[%clk 0:01:16.1]} 25... Nc3+ {[%clk 0:00:30.9]} 26. Kxb2 {[%clk
0:01:15.3]} 26... Qa5 {[%clk 0:00:30.7]} 27. Nh6# {[%clk 0:01:16.2]} 1-0

[Event "*** Titled Tuesday 3|2 Blitz"]
[Site "Chess.com"]
[Date "2016.02.02"]
[Round "1"]
[White "StellarChessPro"]
[Black "Tesla37"]
[Result "0-1"]
[WhiteElo "2236"]
[BlackElo "2560"]
[TimeControl "180+2"]
[EndTime "11:06:53 PST"]
[Termination "Tesla37 won by resignation"]

1. d4 {[%clk 0:02:59.8]} 1... Nf6 {[%clk 0:03:00.2]} 2. Bg5 {[%clk 0:02:59.8]}
2... c5 {[%clk 0:02:59.7]} 3. Bxf6 {[%clk 0:03:00.5]} 3... gxf6 {[%clk
0:03:00.1]} 4. d5 {[%clk 0:03:02.4]} 4... Qb6 {[%clk 0:03:01]} 5. Qc1 {[%clk
0:03:03.1]} 5... f5 {[%clk 0:03:02.2]} 6. e3 {[%clk 0:03:04.2]} 6... Bg7 {[%clk
0:03:02.6]} 7. c3 {[%clk 0:03:05.6]} 7... Na6 {[%clk 0:03:03.5]} 8. Ne2 {[%clk
0:03:06.6]} 8... Nc7 {[%clk 0:03:03.2]} 9. Nf4 {[%clk 0:03:07.6]} 9... h5 {[%clk
0:03:03.4]} 10. Be2 {[%clk 0:03:07.7]} 10... h4 {[%clk 0:03:04.4]} 11. Nd2
{[%clk 0:03:09]} 11... Qh6 {[%clk 0:03:01.9]} 12. Qc2 {[%clk 0:03:08.1]} 12...
d6 {[%clk 0:02:56.3]} 13. a4 {[%clk 0:03:08.7]} 13... e5 {[%clk 0:02:54.4]} 14.
dxe6 {[%clk 0:03:09.4]} 14... fxe6 {[%clk 0:02:54.8]} 15. Bh5+ {[%clk
0:03:03.1]} 15... Kd8 {[%clk 0:02:55.1]} 16. Bf3 {[%clk 0:02:59.1]} 16... e5
{[%clk 0:02:49.7]} 17. Nd5 {[%clk 0:02:59.8]} 17... e4 {[%clk 0:02:50.3]} 18.
Nxc7 {[%clk 0:03:00.9]} 18... Kxc7 {[%clk 0:02:46.2]} 19. Be2 {[%clk 0:03:01.7]}
19... Qg6 {[%clk 0:02:41.3]} 20. O-O-O {[%clk 0:03:01.8]} 20... d5 {[%clk
0:02:34.6]} 21. Nb3 {[%clk 0:03:01.5]} 21... Qd6 {[%clk 0:01:59.4]} 22. c4
{[%clk 0:02:56.7]} 22... d4 {[%clk 0:01:59.7]} 23. exd4 {[%clk 0:02:55.3]} 23...
cxd4 {[%clk 0:02:00.4]} 24. c5 {[%clk 0:02:56.7]} 24... Qf4+ {[%clk 0:02:01.1]}
25. Kb1 {[%clk 0:02:57.4]} 25... d3 {[%clk 0:01:56.5]} 26. Qc4 {[%clk
0:02:57.7]} 26... dxe2 {[%clk 0:01:50.6]} 27. Qf7+ {[%clk 0:02:55.9]} 27... Kb8
{[%clk 0:01:51.4]} 28. Rc1 {[%clk 0:02:34.4]} 28... Qc7 {[%clk 0:01:48.7]} 29.
Qc4 {[%clk 0:02:30.6]} 29... Qe5 {[%clk 0:01:49.1]} 30. Qxe2 {[%clk 0:02:29]}
30... Be6 {[%clk 0:01:49.9]} 31. Na5 {[%clk 0:02:29.2]} 31... Kc7 {[%clk
0:01:40.4]} 32. Qb5 {[%clk 0:02:27.4]} 32... Rab8 {[%clk 0:01:37.9]} 33. Rhd1
{[%clk 0:02:27.5]} 33... Rhd8 {[%clk 0:01:30.8]} 34. Rxd8 {[%clk 0:02:28.2]}
34... Kxd8 {[%clk 0:01:30.9]} 35. Nxb7+ {[%clk 0:02:26.2]} 35... Ke7 {[%clk
0:01:31.9]} 36. c6 {[%clk 0:02:25.3]} 36... Qxb5 {[%clk 0:01:30.3]} 37. axb5
{[%clk 0:02:27.2]} 37... Be5 {[%clk 0:01:30.1]} 38. g3 {[%clk 0:02:27.5]} 38...
h3 {[%clk 0:01:30.4]} 39. Kc2 {[%clk 0:02:17.8]} 39... Bc4 {[%clk 0:01:25.8]}
40. Na5 {[%clk 0:02:12]} 40... Bxb5 {[%clk 0:01:22.9]} 41. Kd2 {[%clk
0:02:13.3]} 41... Bc7 {[%clk 0:01:20]} 42. Nb7 {[%clk 0:02:12.4]} 42... Bxc6
{[%clk 0:01:16.9]} 43. Rxc6 {[%clk 0:02:13.5]} 43... Rxb7 {[%clk 0:01:17.7]} 44.
Ke3 {[%clk 0:02:14.9]} 44... Be5 {[%clk 0:01:16.6]} 45. f4 {[%clk 0:01:58.1]}
45... Rb3+ {[%clk 0:01:15.4]} 46. Kd2 {[%clk 0:01:58.8]} 46... Rxb2+ {[%clk
0:01:12.9]} 47. Ke3 {[%clk 0:02:00.2]} 47... Rb3+ {[%clk 0:01:11.8]} 48. Kd2
{[%clk 0:02:01]} 48... Bd4 {[%clk 0:01:13.3]} 49. Rc7+ {[%clk 0:02:00.6]} 49...
Kd6 {[%clk 0:01:13.7]} 50. Rh7 {[%clk 0:02:02.5]} 50... Rb2+ {[%clk 0:01:14.4]}
0-1

[Event "*** Titled Tuesday 3|2 Blitz"]
[Site "Chess.com"]
[Date "2016.02.02"]
[Round "1"]
[White "KyronGriffith"]
[Black "Dlugy"]
[Result "0-1"]
[WhiteElo "2258"]
[BlackElo "2565"]
[TimeControl "180+2"]
[EndTime "11:07:17 PST"]
[Termination "Dlugy won by resignation"]

1. e4 {[%clk 0:02:59.5]} 1... c5 {[%clk 0:02:59.7]} 2. Nf3 {[%clk 0:03:00.6]}
2... d6 {[%clk 0:03:01.1]} 3. d4 {[%clk 0:03:02.2]} 3... cxd4 {[%clk 0:03:02.3]}
4. Nxd4 {[%clk 0:03:04.1]} 4... Nf6 {[%clk 0:03:03.9]} 5. Nc3 {[%clk 0:03:05.8]}
5... Nc6 {[%clk 0:03:05.5]} 6. Bg5 {[%clk 0:03:07.1]} 6... e6 {[%clk 0:03:06.7]}
7. Qd2 {[%clk 0:03:08.5]} 7... a6 {[%clk 0:03:08.3]} 8. O-O-O {[%clk 0:03:08.2]}
8... h6 {[%clk 0:03:09.9]} 9. Nxc6 {[%clk 0:03:07.9]} 9... bxc6 {[%clk 0:03:11]}
10. Bf4 {[%clk 0:03:09.5]} 10... d5 {[%clk 0:03:12.6]} 11. Qe3 {[%clk
0:03:11.1]} 11... Bb4 {[%clk 0:03:13.6]} 12. Be2 {[%clk 0:03:06.3]} 12... O-O
{[%clk 0:03:12.1]} 13. e5 {[%clk 0:02:33.9]} 13... Nh7 {[%clk 0:03:12.6]} 14. g4
{[%clk 0:02:20.1]} 14... c5 {[%clk 0:03:06.9]} 15. Qg3 {[%clk 0:02:10.7]} 15...
Bb7 {[%clk 0:02:57.1]} 16. Ne4 {[%clk 0:01:41.6]} 16... Qa5 {[%clk 0:02:57.4]}
17. Nd6 {[%clk 0:01:24.8]} 17... Qxa2 {[%clk 0:02:50.9]} 18. c3 {[%clk
0:01:26.2]} 18... Bc6 {[%clk 0:02:40.2]} 19. cxb4 {[%clk 0:01:22.2]} 19... Ba4
{[%clk 0:02:36.2]} 20. Qa3 {[%clk 0:01:12.4]} 20... Qxa3 {[%clk 0:02:37.2]} 21.
bxa3 {[%clk 0:01:13.9]} 21... Bxd1 {[%clk 0:02:39.1]} 22. Rxd1 {[%clk 0:01:09]}
22... cxb4 {[%clk 0:02:41]} 23. axb4 {[%clk 0:01:10.7]} 23... Rfb8 {[%clk
0:02:41]} 24. Bd2 {[%clk 0:01:02.3]} 24... Nf8 {[%clk 0:02:41.7]} 25. f4 {[%clk
0:01:00.6]} 25... Nd7 {[%clk 0:02:39.5]} 26. Kc2 {[%clk 0:00:58.6]} 26... g5
{[%clk 0:02:40]} 27. fxg5 {[%clk 0:00:58.3]} 27... hxg5 {[%clk 0:02:40.1]} 28.
Bxg5 {[%clk 0:00:48.5]} 28... Rxb4 {[%clk 0:02:37.1]} 29. Bd2 {[%clk 0:00:30.9]}
29... Rb6 {[%clk 0:02:30.4]} 30. Bc3 {[%clk 0:00:31.2]} 30... f6 {[%clk
0:02:24.5]} 31. Bf3 {[%clk 0:00:24]} 31... fxe5 {[%clk 0:02:24.5]} 32. Rxd5
{[%clk 0:00:24.9]} 32... exd5 {[%clk 0:02:23.9]} 33. Bxd5+ {[%clk 0:00:26.8]}
33... Kg7 {[%clk 0:02:23.4]} 34. Bxa8 {[%clk 0:00:27.1]} 34... Rxd6 {[%clk
0:02:23.9]} 35. h4 {[%clk 0:00:27.4]} 35... a5 {[%clk 0:02:16.5]} 36. Kb3 {[%clk
0:00:18.5]} 36... a4+ {[%clk 0:02:16]} 37. Ka3 {[%clk 0:00:16]} 37... Rd3 {[%clk
0:02:16.2]} 38. Kb4 {[%clk 0:00:17.3]} 38... Rg3 {[%clk 0:02:15.4]} 39. Bc6
{[%clk 0:00:17.3]} 39... Rxg4+ {[%clk 0:02:16]} 40. Kb5 {[%clk 0:00:17.1]} 40...
Nf6 {[%clk 0:02:10.4]} 41. Bxe5 {[%clk 0:00:14.7]} 41... Rxh4 {[%clk 0:02:11.1]}
42. Kc5 {[%clk 0:00:15.9]} 42... Rh5 {[%clk 0:02:04.5]} 43. Kd6 {[%clk
0:00:10.9]} 43... Rxe5 {[%clk 0:02:05.1]} 0-1

[Event "*** Titled Tuesday 3|2 Blitz"]
[Site "Chess.com"]
[Date "2016.02.02"]
[Round "1"]
[White "nonsopolo1"]
[Black "GMG"]
[Result "1-0"]
[WhiteElo "2140"]
[BlackElo "2440"]
[TimeControl "180+2"]
[EndTime "11:07:19 PST"]
[Termination "nonsopolo1 won by resignation"]

1. e4 {[%clk 0:02:54.7]} 1... c5 {[%clk 0:02:13.5]} 2. Nf3 {[%clk 0:02:47.3]}
2... e6 {[%clk 0:02:12.8]} 3. d4 {[%clk 0:02:47.9]} 3... cxd4 {[%clk 0:02:13.1]}
4. Nxd4 {[%clk 0:02:48.7]} 4... a6 {[%clk 0:02:14.9]} 5. Nc3 {[%clk 0:02:48.5]}
5... Qc7 {[%clk 0:02:16.2]} 6. Bd3 {[%clk 0:02:48.3]} 6... Bd6 {[%clk 0:02:17]}
7. Qf3 {[%clk 0:02:44.9]} 7... Nc6 {[%clk 0:02:09.4]} 8. Nxc6 {[%clk 0:02:44.2]}
8... bxc6 {[%clk 0:02:11.3]} 9. Be3 {[%clk 0:02:41.7]} 9... Rb8 {[%clk
0:02:09.9]} 10. b3 {[%clk 0:02:39]} 10... Be5 {[%clk 0:02:10.4]} 11. Bd2 {[%clk
0:02:33.8]} 11... Nf6 {[%clk 0:02:10.1]} 12. h3 {[%clk 0:02:31.7]} 12... d5
{[%clk 0:02:10.8]} 13. O-O {[%clk 0:02:30]} 13... O-O {[%clk 0:02:09.4]} 14.
Rae1 {[%clk 0:02:28.9]} 14... Bb7 {[%clk 0:02:02]} 15. Qe2 {[%clk 0:02:28.7]}
15... Rfe8 {[%clk 0:01:59.8]} 16. f4 {[%clk 0:02:26]} 16... Bd4+ {[%clk
0:01:59.5]} 17. Kh1 {[%clk 0:02:26.6]} 17... e5 {[%clk 0:00:14.7]} 18. f5 {[%clk
0:02:26.3]} 18... Bxc3 {[%clk 0:00:15.1]} 19. Bxc3 {[%clk 0:02:26.3]} 19... dxe4
{[%clk 0:00:17]} 20. Bxe4 {[%clk 0:02:26.5]} 20... Nxe4 {[%clk 0:00:18.9]} 21.
Qxe4 {[%clk 0:02:26.8]} 21... c5 {[%clk 0:00:20.3]} 22. Qg4 {[%clk 0:02:27]}
22... Qc6 {[%clk 0:00:21.2]} 23. f6 {[%clk 0:02:25.6]} 23... g6 {[%clk
0:00:21.1]} 24. Rxe5 {[%clk 0:02:25]} 24... h5 {[%clk 0:00:23]} 25. Qg5 {[%clk
0:02:22.7]} 25... Rxe5 {[%clk 0:00:23.6]} 26. Bxe5 {[%clk 0:02:15.4]} 26... Re8
{[%clk 0:00:25.5]} 27. Re1 {[%clk 0:02:07.7]} 27... Qd5 {[%clk 0:00:23.8]} 28.
Kh2 {[%clk 0:02:06.2]} 28... Kh7 {[%clk 0:00:25.1]} 29. Re2 {[%clk 0:01:54.3]}
29... Re6 {[%clk 0:00:25.8]} 30. c4 {[%clk 0:01:50.7]} 30... Qd8 {[%clk
0:00:19.4]} 31. Rd2 {[%clk 0:01:36.2]} 31... Qe8 {[%clk 0:00:16.5]} 32. Bf4
{[%clk 0:01:32.9]} 32... Qf8 {[%clk 0:00:18]} 33. Rd8 {[%clk 0:01:27.2]} 33...
Re2 {[%clk 0:00:15.9]} 34. Rxf8 {[%clk 0:01:23.5]} 1-0